Cogmind - Beta 14 @@@ ROGUE MODE // 2024.10.16 @ 22:49:22 Player: morimori Result: Destroyed by G-34 Mercenary with Small Laser Performance ------------- Evolutions (0) 0 Regions Visited (2) 400 Robots Destroyed (24) 120 Value Destroyed (451) 451 Prototype IDs (2) 40 Alien Tech Used (0) 0 Bonus (0) 0 TOTAL SCORE: 1011 Bonus ------- None Cogmind --------- Core Integrity 0/250 Matter 223/300 Energy 250/250 System Corruption 0% Temperature Cool (6) Movement Rolling (135) Ox3 Location -10/Mines Parts ------- > --- POWER (1) -------- Ion Engine > --- PROPULSION (2) --- Armored Wheel Armored Wheel > --- UTILITY (2) ------ Huge Storage Unit Light Armor Plating > --- WEAPON (2) ------- Assault Rifle Assault Rifle > --- INVENTORY (25) --- Ion Engine Ion Engine Light Nuclear Core Armored Wheel Armored Wheel Hover Unit Hover Unit Heat Sink Heat Sink Large Storage Unit High-capacity Storage Unit Medium Matter Pod (100) Sensor Array Improved Terrain Scanner Terrain Scan Processor Seismic Detector Light Armor Plating Assault Rifle Assault Rifle Assault Rifle Assault Rifle Light Assault Rifle Grenade Launcher Grenade Launcher Heavy Hammer Peak State ------------ > --- POWER ------------ Ion Engine > --- PROPULSION ------- Armored Wheel Armored Wheel > --- UTILITY ---------- Heat Sink Huge Storage Unit > --- WEAPON ----------- Beam Rifle Particle Gun > --- INVENTORY -------- Ion Engine Light Ion Engine Light Nuclear Core Armored Wheel Armored Wheel Heat Sink Small Storage Unit High-capacity Storage Unit Medium Matter Pod Improved Terrain Scanner Terrain Scan Processor Seismic Detector Beam Rifle Beam Rifle Beam Rifle Particle Gun Light Assault Rifle Heavy Hammer [Rating: 14] Favorites ----------- Power Ion Engine Engine Ion Engine Propulsion Armored Wheel Wheel Armored Wheel Utility Huge Storage Unit Device Seismic Detector Storage Huge Storage Unit Protection Light Armor Plating Weapon Assault Rifle Energy Gun Particle Gun Ballistic Gun Assault Rifle Impact Weapon Heavy Hammer Build | -11 -10 -10 ------- Run | Yrd Mat Min Slots Evolved . | . . . Power . | . . . Propulsion . | . . . Utility . | . . . Weapon . | . . . Parts Attached 33 | 8 24 1 Power 4 | 1 3 . Engine 4 | 1 3 . Core . | . . . Reactor . | . . . Propulsion 5 | 2 3 . Treads . | . . . Leg . | . . . Wheel 5 | 2 3 . Hover . | . . . Flight . | . . . Utility 15 | 3 11 1 Device 9 | 2 7 . Storage 2 | 1 1 . Processor . | . . . Hackware . | . . . Protection 4 | . 3 1 Artifact . | . . . Weapon 9 | 2 7 . Energy Gun 4 | 1 3 . Energy Cannon . | . . . Ballistic Gun 4 | 1 3 . Ballistic Cannon . | . . . Launcher . | . . . Special Weapon . | . . . Impact Weapon 1 | . 1 . Slashing Weapon . | . . . Piercing Weapon . | . . . Special Melee Weapon . | . . . Unidentified Prototypes . | . . . Parts Lost 3 | . 3 . Power 1 | . 1 . Propulsion . | . . . Utility . | . . . Weapon 2 | . 2 . Highest Loss Streak 1 | . 1 . To Critical Strikes . | . . . Average Slot Usage (%) 99 | . 99 100 Engine 13 | . 13 14 Wheel 28 | . 28 28 Device 13 | . 13 12 Storage 14 | . 14 14 Energy Gun 11 | . 12 . Ballistic Gun 16 | . 15 28 Peak Build Rating 14 | 8 14 12 Average Rating 10 | 6 11 12 On Entrance 6 | . 8 12 Naked Turns . | . . . Heaviest Build 94 | 15 94 90 Greatest Support 32 | 32 32 24 Greatest Overweight (x) 4 | 2 4 3 Average Overweight (x) 2 | . 2 3 Largest Inventory Capacity 25 | 8 25 25 Average Capacity 21 | 7 23 25 Most Carried 25 | 8 25 25 Average Carried 17 | 4 18 25 Final Capacity 25 | 8 25 25 Final Carried 25 | 8 25 25 Class Distribution -------------------- 100% | Mutant Dominant Class ---------------- Mutant | -10/Materials Mutant | -10/Mines Resources | -11 -10 -10 ----------- Run | Yrd Mat Min Matter Collected 729 | 368 361 . Remotely . | . . . Salvage Created 648 | 175 473 . Parts 54 | 14 40 . Haulers Intercepted 1 | . 1 . Recyclers Shooed 1 | . 1 . Parts Field Recycled . | . . . Retrieved Matter . | . . . Parts Self-Destructed . | . . . Prevented . | . . . Kills | -11 -10 -10 ------- Run | Yrd Mat Min Combat Hostiles Destroyed 13 | . 13 . Guns 11 | . 11 . AOE 2 | . 2 . Classes Destroyed 7 | 3 4 . Worker 2 | 1 1 . Tunneler 4 | 4 . . Hauler 1 | . 1 . Recycler 1 | 1 . . Watcher 3 | . 3 . Swarmer 5 | . 5 . Grunt 8 | . 8 . Best Kill Streak 3 | 3 3 . Combat Bots Only 3 | . 3 . Max Kills in Single Turn 2 | 1 2 . Gunslinging 1 | . 1 . Exploded 2 | . 2 . Melee . | . . . Uniques/NPCs Destroyed . | . . . Combat | -11 -10 -10 -------- Run | Yrd Mat Min Hostile Shots Fired 87 | . 81 6 Missed 19 | . 17 2 Damage Taken 825 | . 781 44 Core 261 | . 249 12 Absorbed by Shields . | . . . Core Remaining (%) 100 | 100 . . Volleys Fired 80 | 17 59 4 Largest 2 | 2 2 2 Hottest 121 | 70 121 40 Shots Fired 160 | 34 118 8 Gun 160 | 34 118 8 Cannon . | . . . Launcher . | . . . Special . | . . . Kinetic 81 | 17 56 8 Thermal 79 | 17 62 . Explosive . | . . . Electromagnetic . | . . . Robot Hit Streak 9 | 4 9 3 Robot Miss Streak 5 | 3 5 2 Penetration Max . | . . . Secondary Targets 4 | . 4 . Max Gunslinging Chain 1 | . 1 . Shots Hit Robots 98 | 22 72 4 Core Hits 34 | 7 26 1 Critical Kills . | . . . Critical Parts Destroyed . | . . . Critical Strikes 2 | 1 1 . Burn 2 | 1 1 . Melee Attacks 2 | . 2 . Impact 2 | . 2 . Slashing . | . . . Piercing . | . . . Sneak Attacks . | . . . Combat Hostiles . | . . . Follow-up Attacks . | . . . Damage Inflicted 1519 | 284 1191 44 Guns 1349 | 284 1021 44 Cannons . | . . . Explosions 170 | . 170 . Melee . | . . . Ramming . | . . . Kinetic 621 | 160 417 44 Thermal 728 | 124 604 . Explosive 170 | . 170 . Electromagnetic . | . . . Impact . | . . . Slashing . | . . . Piercing . | . . . Highest Corruption . | . . . Average Corruption . | . . . Corruption Purged . | . . . Corruption Blocked . | . . . Overload Shots . | . . . Overflow Damage 20 | . 20 . Projectiles . | . . . Explosions 20 | . 20 . Melee . | . . . Knockbacks . | . . . Impact . | . . . Kinetic . | . . . Secondary . | . . . Self-Inflicted Damage 82 | . 82 . Shots 1 | . 1 . Rammed . | . . . Targets Rammed . | . . . Kicked . | . . . Crushed . | . . . Highest Temperature 330 | 63 330 2 Average Temperature 58 | 28 69 2 Received Heat Transfer 270 | . 246 24 Effects 3 | . 3 . Interference 2 | . 2 . Damage (minor) 1 | . 1 . Siege Activations . | . . . Robots Corrupted . | . . . Combat Hostiles . | . . . Parts Fried . | . . . Impact Corruptions . | . . . Robots Melted . | . . . Combat Hostiles . | . . . Parts Melted . | . . . Heat Transferred 2023 | 444 1579 . Parts Sabotaged . | . . . Parts Stolen . | . . . Parts Stripped . | . . . Power Chain Reactions . | . . . Alert | -11 -10 -10 ------- Run | Yrd Mat Min Peak Influence 277 | 30 277 14 Initial 19 | . 19 14 Average 73 | 14 85 14 Maximum Alert Level 1 | . 1 . Low Security (%) 87 | 100 84 100 Level 1 12 | . 15 . Level 2 . | . . . Level 3 . | . . . Level 4 . | . . . Level 5 . | . . . High Security . | . . . Max Security . | . . . Squads Dispatched 4 | . 4 . Investigation 4 | . 4 . Extermination . | . . . Reinforcement . | . . . Assault . | . . . Garrison . | . . . Intercept . | . . . Searches Triggered . | . . . Construction Impeded . | . . . Haulers Reinforced . | . . . Active Scanning Responses . | . . . Cargo Convoy Interrupts . | . . . Stealth | -11 -10 -10 --------- Run | Yrd Mat Min Distress Signals 1 | . 1 . Communications Jammed . | . . . Distress Signals . | . . . Times Spotted 24 | . 23 1 Peak Tracking Total 4 | . 4 1 Tactical Retreats . | . . . Traps | -11 -10 -10 ------- Run | Yrd Mat Min Traps Triggered 3 | . 3 . Indirectly . | . . . Trap Hack Attempts . | . . . Triggered . | . . . Disarmed . | . . . Reprogrammed . | . . . Reused . | . . . Traps Extracted . | . . . Installed . | . . . Triggered . | . . . Machines | -11 -10 -10 ---------- Run | Yrd Mat Min Machines Disabled 3 | . 3 . Max in Single Turn 1 | . 1 . Machines Repaired . | . . . Machines Dismantled . | . . . Machines Sabotaged . | . . . Overloaded Fab Kills . | . . . Hacking | -11 -10 -10 --------- Run | Yrd Mat Min Machines Accessed 9 | . 9 . Terminals 7 | . 7 . Fabricators . | . . . Repair Stations . | . . . Recycling Units 2 | . 2 . Scanalyzers . | . . . Garrison Access . | . . . Total Hacks 26 | . 26 . Successful 16 | . 16 . Failed 9 | . 9 . Catastrophic . | . . . Database Lockouts 1 | . 1 . Manual 20 | . 20 . Terminals 24 | . 24 . Fabricators . | . . . Repair Stations . | . . . Recycling Units 2 | . 2 . Scanalyzers . | . . . Garrison Access . | . . . Terminal Hacks 10 | . 10 . Robot Analysis 1 | . 1 . Prototype ID Bank 1 | . 1 . Branch Access Points 1 | . 1 . Recycling Unit Index 1 | . 1 . Unreport Threat 3 | . 3 . Locate Traps 1 | . 1 . Registered Components 1 | . 1 . Zone Layout 1 | . 1 . Fabricator Hacks . | . . . Repair Station Hacks . | . . . Recycling Unit Hacks . | . . . Scanalyzer . | . . . Garrison Access Hacks . | . . . Unauthorized Hacks 6 | . 6 . Terminals 4 | . 4 . Botnet 2 | . 2 . Disrupt 1 | . 1 . Operators 1 | . 1 . Fabricators . | . . . Repair Stations . | . . . Recycling Units 2 | . 2 . Tunnel 2 | . 2 . Scanalyzers . | . . . Garrison Access . | . . . Data Cores Recovered . | . . . Used . | . . . Hacking Detections 6 | . 6 . Full Trace Events . | . . . Feedback Events . | . . . Feedback Blocked . | . . . Robot Schematics Acquired . | . . . Robots Built . | . . . Authchips . | . . . Time . | . . . Total Robot Build Rating . | . . . Part Schematics Acquired . | . . . Parts Built . | . . . Authchips . | . . . Time . | . . . Total Part Build Rating . | . . . Parts Repaired . | . . . Time . | . . . Parts Recycled . | . . . Recycled Matter . | . . . Retrieved Matter . | . . . Retrieved Components . | . . . Parts Scanalyzed . | . . . Part Schematics Acquired . | . . . Parts Damaged . | . . . Bothacking | -11 -10 -10 ------------ Run | Yrd Mat Min Used RIF Installer . | . . . Robots Hacked . | . . . Non-combat . | . . . Combat . | . . . Robot Hacks Applied . | . . . Relay Couplers Released . | . . . Fabnet Peak Effective % . | . . . Robots Rewired . | . . . Allies Hacked . | . . . Hacks Repelled . | . . . Allies | -11 -10 -10 -------- Run | Yrd Mat Min Total Allies . | . . . Largest Group . | . . . Highest-Rated Group . | . . . Highest-Rated Ally . | . . . Total Orders . | . . . Ally Attacks . | . . . Total Damage . | . . . Kills . | . . . Allies Corrupted . | . . . Allies Melted . | . . . Intel | -11 -10 -10 ------- Run | Yrd Mat Min Robot Analysis Total 1 | . 1 . Derelict Logs Recovered 1 | . . 1 Drone Launches . | . . . Drone Recoveries . | . . . Exploration | -11 -10 -10 ------------- Run | Yrd Mat Min Turns Passed 1695 | 194 1401 100 Spaces Moved 903 | 114 724 65 Core 14 | 14 . . Treads . | . . . Legs . | . . . Wheels 889 | 100 724 65 Hover . | . . . Flight . | . . . Fastest Speed 50 | 50 100 135 Average Speed 127 | 98 130 135 Slowest Speed 150 | 150 145 135 Overloaded Moves . | . . . Propulsion Burnouts . | . . . Robots Hopped . | . . . Cave-ins Triggered . | . . . Exploration Rate (%) 36 | 5 82 22 Regions Visited 2 Branch Regions 1 Pre-discovered Areas 3 | . 2 1 Known Exits Taken 1 | . 1 . Unknown Exits Taken 1 | 1 . . Scrap Searched . | . . . Spaces Dug 1 | . 1 . Terrain Destroyed 53 | . 53 . Melee 1 | . 1 . Projectile . | . . . AOE 52 | . 52 . Terrain Rammed . | . . . Walls Destroyed . | . . . Machines Disabled . | . . . Actions | -11 -10 -10 --------- Run | Yrd Mat Min Total 1288 | 158 1060 70 Wait 202 | 9 193 . Move 901 | 113 723 65 Hop . | . . . Pick Up 45 | 9 36 . Fast Attach 7 | 7 . . Attach 5 | . 5 . Detach . | . . . Swap 21 | 1 19 1 Drop 25 | 2 23 . Fire 80 | 17 59 4 Melee 2 | . 2 . Ram . | . . . Kick . | . . . Crush . | . . . Escape Stasis . | . . . Rewire . | . . . Trap . | . . . Miscellaneous . | . . . Route ------- -11/Scrapyard -10/Materials (discovered 4 exits: [*Mat x2] / *Min x2) -10/Mines History --------- Turn | Location | Event 18 | -11/Scrapyard | Discovered new exit (range 16) 195 | -11/Scrapyard | Entered Materials 325 | -10/Materials | Build established: Mutant 450 | -10/Materials | Core integrity fell below 50% 464 | -10/Materials | Discovered new exit (range 14) 794 | -10/Materials | Core integrity fell below 20% 847 | -10/Materials | Identified exit to Mines 862 | -10/Materials | Central database locked down 1364 | -10/Materials | Discovered new exit (range 14) 1596 | -10/Materials | Entered Mines 1643 | -10/Mines | Assembled infested the area 1696 | -10/Mines | Destroyed by G-34 Mercenary with Small Laser Last Messages --------------- 01380_ ALERT: Suspicious activity at Recycling Unit M001. Dispatching Investigation squad. 01430_ G-34 Mercenary destroyed. 01434_ Acquired 33 matter. 01473_ Acquired 18 matter. 01479_ W-16 Scout destroyed. 01483_ K-01 Serf collects debris. 01486_ K-01 Serf cleans the Atomic Centrifuge. 01491_ K-01 Serf collects debris. 01498_ Acquired 20 matter. 01570_ Dropped Beam Rifle. 01579_ Acquired Lgt. Armor Plating. LOCATION=MINES GOAL=ESCAPE Something is scanning the area. 01626_ Acquired derelict log, extracted data. World map updated: -8/Materials. 01643_ ALERT: Infestation in the mines, dispatching Demolisher response squad. 01668_ HV Slug penetrates Wall. Map ----- +----------------------------------------------------+ | ??????????????????????????????? ??????????????? | | ??????????????????????????????? ??????????????? | | ??????????????????????????????? ??????????????? | | ??????????????????????????????? #??????????????? | | ??????????????????????????????# ##?????????????? | | ??????????????????????????????# #?????????????? | | ??????????????????????????????# #?????????????? | | ?????????????????????????????? ###???????????? | | ?????????????????????????????? ????????????? | | ??????????????????????????????# #?????????????? | | ??????????????????????????????# #??????????????? | | ???????????? ?????????????????# #???????????????? | | ???????????? ?????????????????# ####????????????? | | ???????????? ????????????????## ##???????????? | | ???????????? ????????????????# #???????????? | | ???????????? ???????????????## #???????????? | | ???????????? ??????????????## ##???????????? | | ???????????? ?????????????## ##????????????? | | ???????????# ##???????????# ##?????????????? | | ??????????## ??????????## ###???? #????????? | | ?????##??## ??????????## #????? #????????? | | ?????? ## ?????????## """ ##?? #####????? | | ???????? ???????### """ ## ????? | | ????????? ????#### """ ???? | | ?????????? #?#### ???? | | ???????????# ### @#### ???? | | ???????????# g ##??####### #??????? | | ??????????## ## #######?????????? ##??????? | | ?????????## ### ##????????????????? ??????????? | | ???????### #######??????####??????????????????? | | ???????# #?????## ##?????????????????? | | ??????# #?????# [ ##????????????????? | | ???# ### #?????# #????????????????? | | ???# #?# #######! #????????????????? | | ???+ #?# #????????????????? | | ???+ ##?# | ##????????????????? | | ???# ##??## ## ### /#?????????????????? | | ???# ###?????# ## #?## !##?????????????????? | | ???## #????????# ## #??#####??????????????????? | | ???# ##????????? ## #?????????????????????????? | | ???####???????????#### #?????????????????????????? | | ????????????????????? ?????????????????????????? | | ????????????????????? ?????????????????????????? | | ????????????????????? ?????????????????????????? | | ????????????????????? ?????????????????????????? | | ????????????????????? ?????????????????????????? | | ?????????????????????###?????????????????????????? | | ?????????????????????????????????????????????????? | | ?????????????????????????????????????????????????? | | ?????????????????????????????????????????????????? | +----------------------------------------------------+ Best States ------------- Heat Dissipation 35 Energy Generation 10 Energy Capacity 250 Matter Stores 300 Matter Capacity 300 Sight Range 16 Terrain Scan Density 10 Armor Coverage 150 Evasion (%) 40 Item Schematics ----------------- None Robot Schematics ------------------ None Fabricated ------------ Nothing Alien Tech Used ----------------- None Achievements -------------- None Challenges ------------ None Game ------ Seed CatalystCoolingTriangulator Manual? 0 Play Time 00:15:39 Cumulative 266.4 hours Start 2024.10.16 @ 21:27:40 End 2024.10.16 @ 22:49:22 Sessions 1 Manual Loads 0 Difficulty Rogue Special Mode None Game No. 140 Rogue 140 Adventurer 0 Explorer 0 Win Type - Total 4 Types 4/0/0/0/0/0/0/0/0 Lore% 44 Gallery% 65 Achievement% 58 Wizard Run 0 Options --------- Layout 0 ASCII 0 Keyboard 1 Movement Vi Keybinds 0 Fullscreen 2 Font 18/SmallcapsGlow Map View 76x50 Zoom Use 0% Tactical HUD 1 Map Filters NONE Filters NONE Steam 1 RUN: 26275d59-68f6-4a71-9b0a-9e259b4d655c